[Event "Late-Titled-Tuesday-Blitz-April-16-2024"]
[Site "Chess.com"]
[Date "2024.04.16"]
[Round "9"]
[White "Durarbayli"]
[Black "mishanick"]
[Result "1-0"]
[WhiteElo "2905"]
[BlackElo "3042"]
[TimeControl "180+1"]
[EndTime "15:46:58 PDT"]
[Termination "Durarbayli won by checkmate"]

1. e4 {[%clk 0:03:00.9]} 1... c5 {[%clk 0:02:55.2]} 2. Nf3 {[%clk 0:03:00.8]}
2... d6 {[%clk 0:02:55.2]} 3. d4 {[%clk 0:03:01.4]} 3... cxd4 {[%clk 0:02:56.1]}
4. Nxd4 {[%clk 0:03:02]} 4... Nf6 {[%clk 0:02:56.5]} 5. Nc3 {[%clk 0:03:02.6]}
5... a6 {[%clk 0:02:57.2]} 6. h4 {[%clk 0:03:02.9]} 6... e5 {[%clk 0:02:52.7]}
7. Nf5 {[%clk 0:03:02.6]} 7... d5 {[%clk 0:02:53.3]} 8. Qf3 {[%clk 0:03:01.8]}
8... d4 {[%clk 0:02:53.1]} 9. Nd5 {[%clk 0:03:02]} 9... Nxd5 {[%clk 0:02:51.8]}
10. exd5 {[%clk 0:03:02.9]} 10... Bxf5 {[%clk 0:02:41.9]} 11. Qxf5 {[%clk
0:03:03.8]} 11... Nd7 {[%clk 0:02:42.1]} 12. c3 {[%clk 0:03:03.9]} 12... g6
{[%clk 0:02:40.4]} 13. Qh3 {[%clk 0:03:04]} 13... Bc5 {[%clk 0:02:35.8]} 14. h5
{[%clk 0:02:54]} 14... Qf6 {[%clk 0:02:25.8]} 15. b4 {[%clk 0:02:44.9]} 15...
Ba7 {[%clk 0:02:23.3]} 16. c4 {[%clk 0:02:40.9]} 16... O-O-O {[%clk 0:02:14.3]}
17. c5 {[%clk 0:02:30.4]} 17... e4 {[%clk 0:02:07.8]} 18. Bb2 {[%clk 0:02:14.2]}
18... Kb8 {[%clk 0:01:33.7]} 19. O-O-O {[%clk 0:01:56.4]} 19... Nxc5 {[%clk
0:01:30.8]} 20. bxc5 {[%clk 0:01:39.9]} 20... Bxc5 {[%clk 0:01:30.4]} 21. Bc4
{[%clk 0:01:34.7]} 21... Ka8 {[%clk 0:01:13.8]} 22. Kb1 {[%clk 0:01:30.1]} 22...
Qd6 {[%clk 0:01:00.2]} 23. hxg6 {[%clk 0:01:27.6]} 23... hxg6 {[%clk 0:00:58.1]}
24. Qxh8 {[%clk 0:01:02.7]} 24... Rxh8 {[%clk 0:00:59]} 25. Rxh8+ {[%clk
0:01:02.7]} 25... Ka7 {[%clk 0:00:59.7]} 26. Rxd4 {[%clk 0:00:56.5]} 26... Qb6
{[%clk 0:00:30.9]} 27. Rxe4 {[%clk 0:00:48.2]} 27... Ba3 {[%clk 0:00:29.9]} 28.
Re2 {[%clk 0:00:41.1]} 28... Bxb2 {[%clk 0:00:28.1]} 29. Rxb2 {[%clk 0:00:42]}
29... Qd4 {[%clk 0:00:27.9]} 30. Rh1 {[%clk 0:00:34.5]} 30... Qxc4 {[%clk
0:00:27.8]} 31. Rd1 {[%clk 0:00:31.8]} 31... Qa4 {[%clk 0:00:23.4]} 32. Rb3
{[%clk 0:00:24.5]} 32... Qe4+ {[%clk 0:00:23.4]} 33. Rbd3 {[%clk 0:00:23.9]}
33... Qb4+ {[%clk 0:00:23.5]} 34. Kc1 {[%clk 0:00:23.5]} 34... Qd6 {[%clk
0:00:23.9]} 35. g3 {[%clk 0:00:20.6]} 35... Kb8 {[%clk 0:00:23.5]} 36. R1d2
{[%clk 0:00:21.2]} 36... Kc7 {[%clk 0:00:23.6]} 37. Rc2+ {[%clk 0:00:19]} 37...
Kd7 {[%clk 0:00:24.1]} 38. Kd2 {[%clk 0:00:19.3]} 38... Qb4+ {[%clk 0:00:23.2]}
39. Ke2 {[%clk 0:00:19.1]} 39... Qe4+ {[%clk 0:00:23]} 40. Kd2 {[%clk
0:00:19.5]} 40... Qb4+ {[%clk 0:00:19.6]} 41. Ke3 {[%clk 0:00:18.4]} 41... Qe7+
{[%clk 0:00:19.3]} 42. Kf3 {[%clk 0:00:14.7]} 42... Qd6 {[%clk 0:00:16.6]} 43.
Kg2 {[%clk 0:00:13.7]} 43... g5 {[%clk 0:00:15.9]} 44. Re2 {[%clk 0:00:13.7]}
44... g4 {[%clk 0:00:15.3]} 45. Re4 {[%clk 0:00:13.4]} 45... f5 {[%clk
0:00:12.5]} 46. Re6 {[%clk 0:00:10]} 46... Qc5 {[%clk 0:00:12.2]} 47. Re5 {[%clk
0:00:09.8]} 47... Qc2 {[%clk 0:00:11.6]} 48. Rde3 {[%clk 0:00:07.3]} 48... Kd6
{[%clk 0:00:12]} 49. a3 {[%clk 0:00:05.9]} 49... a5 {[%clk 0:00:09.9]} 50. Re2
{[%clk 0:00:04.3]} 50... Qd3 {[%clk 0:00:07.6]} 51. Re6+ {[%clk 0:00:04.2]}
51... Kxd5 {[%clk 0:00:04.8]} 52. R2e3 {[%clk 0:00:04.7]} 52... Qb1 {[%clk
0:00:04.6]} 53. R6e5+ {[%clk 0:00:04.6]} 53... Kd6 {[%clk 0:00:04.9]} 54. Rxa5
{[%clk 0:00:04.8]} 54... Qc2 {[%clk 0:00:04.9]} 55. Rae5 {[%clk 0:00:04.9]}
55... Qc6+ {[%clk 0:00:05.3]} 56. Kg1 {[%clk 0:00:05]} 56... Qc1+ {[%clk
0:00:05.8]} 57. Re1 {[%clk 0:00:05.7]} 57... Qc2 {[%clk 0:00:04.2]} 58. R5e3
{[%clk 0:00:05.5]} 58... b5 {[%clk 0:00:04.2]} 59. Kg2 {[%clk 0:00:05.5]} 59...
Qc6+ {[%clk 0:00:04.4]} 60. Kg1 {[%clk 0:00:06]} 60... Qd5 {[%clk 0:00:04.9]}
61. R1e2 {[%clk 0:00:06.1]} 61... Qd1+ {[%clk 0:00:05.2]} 62. Kg2 {[%clk
0:00:06.7]} 62... Qd5+ {[%clk 0:00:05.9]} 63. Kg1 {[%clk 0:00:07.2]} 63... Kc6
{[%clk 0:00:05.9]} 64. Rc3+ {[%clk 0:00:06.2]} 64... Kb6 {[%clk 0:00:06.2]} 65.
Rec2 {[%clk 0:00:07.1]} 65... Ka5 {[%clk 0:00:06.4]} 66. Rc1 {[%clk 0:00:07.2]}
66... Ka4 {[%clk 0:00:06.4]} 67. Re3 {[%clk 0:00:07.3]} 67... Qd2 {[%clk
0:00:06.2]} 68. Rce1 {[%clk 0:00:07.5]} 68... Qd4 {[%clk 0:00:05.5]} 69. Kg2
{[%clk 0:00:07.8]} 69... Qd5+ {[%clk 0:00:06]} 70. Kg1 {[%clk 0:00:08.4]} 70...
Qd4 {[%clk 0:00:06.3]} 71. Rb1 {[%clk 0:00:08.3]} 71... Qd5 {[%clk 0:00:05.5]}
72. Rb4+ {[%clk 0:00:08.9]} 72... Ka5 {[%clk 0:00:06]} 73. Rf4 {[%clk
0:00:09.8]} 73... Qd1+ {[%clk 0:00:05.4]} 74. Kg2 {[%clk 0:00:10.3]} 74... Qd5+
{[%clk 0:00:05.9]} 75. Kh2 {[%clk 0:00:11]} 75... Ka6 {[%clk 0:00:04.3]} 76. a4
{[%clk 0:00:10.6]} 76... bxa4 {[%clk 0:00:03]} 77. Rxa4+ {[%clk 0:00:11.5]}
77... Kb5 {[%clk 0:00:03.4]} 78. Rf4 {[%clk 0:00:11]} 78... Kc6 {[%clk
0:00:03.9]} 79. Re8 {[%clk 0:00:10.9]} 79... Qf7 {[%clk 0:00:03.4]} 80. Re5
{[%clk 0:00:08.1]} 80... Kd6 {[%clk 0:00:03.8]} 81. Rexf5 {[%clk 0:00:08.1]}
81... Qh7+ {[%clk 0:00:04.4]} 82. Kg1 {[%clk 0:00:08.3]} 82... Qg8 {[%clk
0:00:03.3]} 83. Rf6+ {[%clk 0:00:08]} 83... Ke5 {[%clk 0:00:03.7]} 84. R6f5+
{[%clk 0:00:08.9]} 84... Ke6 {[%clk 0:00:04.2]} 85. Ra5 {[%clk 0:00:09.2]} 85...
Qd8 {[%clk 0:00:03.2]} 86. Raa4 {[%clk 0:00:09.7]} 86... Qd1+ {[%clk 0:00:03.6]}
87. Kg2 {[%clk 0:00:10.3]} 87... Qd5+ {[%clk 0:00:03.9]} 88. Rae4+ {[%clk
0:00:11]} 88... Kd7 {[%clk 0:00:03.7]} 89. Rxg4 {[%clk 0:00:11.9]} 89... Qc6
{[%clk 0:00:04]} 90. Rf4 {[%clk 0:00:12.6]} 90... Qd5 {[%clk 0:00:04.2]} 91. g4
{[%clk 0:00:12.8]} 91... Kd8 {[%clk 0:00:04.2]} 92. f3 {[%clk 0:00:13.3]} 92...
Qd2+ {[%clk 0:00:04.6]} 93. Kg3 {[%clk 0:00:13.7]} 93... Qc1 {[%clk 0:00:05.2]}
94. Rf5 {[%clk 0:00:13.4]} 94... Qg1+ {[%clk 0:00:05.2]} 95. Kh4 {[%clk
0:00:14]} 95... Qh2+ {[%clk 0:00:05.4]} 96. Kg5 {[%clk 0:00:14.6]} 96... Qd6
{[%clk 0:00:04.6]} 97. Ree5 {[%clk 0:00:11.3]} 97... Qd2+ {[%clk 0:00:03.7]} 98.
Kg6 {[%clk 0:00:11.4]} 98... Qh2 {[%clk 0:00:03.2]} 99. f4 {[%clk 0:00:11.4]}
99... Qh8 {[%clk 0:00:03.6]} 100. Rf6 {[%clk 0:00:08.2]} 100... Qg8+ {[%clk
0:00:03.8]} 101. Kf5 {[%clk 0:00:08.6]} 101... Qh7+ {[%clk 0:00:04.2]} 102. Kg5
{[%clk 0:00:09.1]} 102... Qg7+ {[%clk 0:00:04.7]} 103. Rg6 {[%clk 0:00:09.7]}
103... Qh8 {[%clk 0:00:04.6]} 104. Ree6 {[%clk 0:00:09.2]} 104... Kd7 {[%clk
0:00:05.2]} 105. f5 {[%clk 0:00:09]} 105... Qd8+ {[%clk 0:00:05.4]} 106. Kh5
{[%clk 0:00:08.7]} 106... Qh8+ {[%clk 0:00:05.6]} 107. Rh6 {[%clk 0:00:09.3]}
107... Qb2 {[%clk 0:00:05]} 108. Rh7+ {[%clk 0:00:09.5]} 108... Kd8 {[%clk
0:00:05.5]} 109. Kg6 {[%clk 0:00:10]} 109... Qd4 {[%clk 0:00:02.8]} 110. g5
{[%clk 0:00:10.5]} 110... Qd5 {[%clk 0:00:03.2]} 111. Ree7 {[%clk 0:00:10]}
111... Qg8+ {[%clk 0:00:03.1]} 112. Rhg7 {[%clk 0:00:09.9]} 112... Qc4 {[%clk
0:00:02.1]} 113. Rd7+ {[%clk 0:00:10.3]} 113... Ke8 {[%clk 0:00:02.3]} 114. Rc7
{[%clk 0:00:10.8]} 114... Qa6+ {[%clk 0:00:01.8]} 115. Kh7 {[%clk 0:00:08.7]}
115... Kd8 {[%clk 0:00:01.7]} 116. Rcf7 {[%clk 0:00:08.3]} 116... Ke8 {[%clk
0:00:02.1]} 117. Ra7 {[%clk 0:00:08.7]} 117... Qd3 {[%clk 0:00:02.2]} 118. Rg8#
{[%clk 0:00:08.8]} 1-0

[Event "Late-Titled-Tuesday-Blitz-April-16-2024"]
[Site "Chess.com"]
[Date "2024.04.16"]
[Round "10"]
[White "Eloist"]
[Black "esrosenberg"]
[Result "1-0"]
[WhiteElo "2456"]
[BlackElo "2331"]
[TimeControl "180+1"]
[EndTime "15:48:24 PDT"]
[Termination "Eloist won by resignation"]

1. e4 {[%clk 0:03:00.9]} 1... c5 {[%clk 0:02:55.9]} 2. Nf3 {[%clk 0:03:00.5]}
2... e6 {[%clk 0:02:56.4]} 3. d4 {[%clk 0:03:00.2]} 3... cxd4 {[%clk 0:02:56.9]}
4. Nxd4 {[%clk 0:03:00.8]} 4... Nf6 {[%clk 0:02:56.8]} 5. Nc3 {[%clk 0:03:00.8]}
5... Nc6 {[%clk 0:02:57.3]} 6. Nxc6 {[%clk 0:03:00.7]} 6... bxc6 {[%clk
0:02:57.1]} 7. e5 {[%clk 0:03:01]} 7... Nd5 {[%clk 0:02:57.5]} 8. Ne4 {[%clk
0:03:01.2]} 8... Qc7 {[%clk 0:02:57.4]} 9. f4 {[%clk 0:03:01.2]} 9... Qb6 {[%clk
0:02:57.7]} 10. c4 {[%clk 0:03:01.3]} 10... Bb4+ {[%clk 0:02:54.6]} 11. Ke2
{[%clk 0:03:00.9]} 11... Ba6 {[%clk 0:02:48.3]} 12. Kf3 {[%clk 0:03:00.4]} 12...
f5 {[%clk 0:02:47]} 13. exf6 {[%clk 0:02:55.6]} 13... Nxf6 {[%clk 0:02:45.8]}
14. c5 {[%clk 0:02:55.8]} 14... Qb7 {[%clk 0:02:34.5]} 15. Nd6+ {[%clk
0:02:55.1]} 1-0

[Event "Late-Titled-Tuesday-Blitz-April-16-2024"]
[Site "Chess.com"]
[Date "2024.04.16"]
[Round "10"]
[White "LiemLe"]
[Black "stollenmonster"]
[Result "1-0"]
[WhiteElo "3056"]
[BlackElo "2889"]
[TimeControl "180+1"]
[EndTime "15:50:13 PDT"]
[Termination "LiemLe won by resignation"]

1. Nf3 {[%clk 0:03:00.9]} 1... Nf6 {[%clk 0:02:59.7]} 2. c4 {[%clk 0:03:01.2]}
2... e6 {[%clk 0:03:00.2]} 3. Nc3 {[%clk 0:03:00.9]} 3... d5 {[%clk 0:03:00.7]}
4. e3 {[%clk 0:03:01.6]} 4... Be7 {[%clk 0:03:00.7]} 5. b3 {[%clk 0:03:01.7]}
5... O-O {[%clk 0:03:01.3]} 6. Bb2 {[%clk 0:03:02.3]} 6... b6 {[%clk 0:03:02]}
7. cxd5 {[%clk 0:03:00.4]} 7... Nxd5 {[%clk 0:03:00.1]} 8. Nxd5 {[%clk
0:02:56.6]} 8... Qxd5 {[%clk 0:03:01]} 9. Bc4 {[%clk 0:02:51.8]} 9... Qd8 {[%clk
0:02:58.9]} 10. h4 {[%clk 0:02:40.1]} 10... h6 {[%clk 0:02:57.8]} 11. Ne5 {[%clk
0:02:37.5]} 11... Bb7 {[%clk 0:02:55.7]} 12. Ng4 {[%clk 0:02:10.5]} 12... Kh7
{[%clk 0:02:50.7]} 13. Qc2+ {[%clk 0:02:09.7]} 13... Kg8 {[%clk 0:02:46.1]} 14.
Rh3 {[%clk 0:01:57.3]} 14... Bxh4 {[%clk 0:02:14.5]} 15. O-O-O {[%clk
0:01:55.8]} 15... Bxg2 {[%clk 0:02:12.8]} 16. Nxh6+ {[%clk 0:01:51.2]} 16...
gxh6 {[%clk 0:02:10.6]} 17. Rg1 {[%clk 0:01:50.3]} 17... Qg5 {[%clk 0:02:08.7]}
18. Rxh4 {[%clk 0:01:42.4]} 1-0

[Event "Late-Titled-Tuesday-Blitz-April-16-2024"]
[Site "Chess.com"]
[Date "2024.04.16"]
[Round "10"]
[White "ccccvhhhj"]
[Black "Rutricks"]
[Result "0-1"]
[WhiteElo "2445"]
[BlackElo "2658"]
[TimeControl "180+1"]
[EndTime "15:50:22 PDT"]
[Termination "Rutricks won by resignation"]

1. e4 {[%clk 0:03:00.9]} 1... g6 {[%clk 0:03:00.9]} 2. d4 {[%clk 0:03:00.9]}
2... Bg7 {[%clk 0:03:01.8]} 3. Nc3 {[%clk 0:03:01.5]} 3... c6 {[%clk 0:03:02.7]}
4. f3 {[%clk 0:03:02]} 4... d5 {[%clk 0:03:03.3]} 5. e5 {[%clk 0:02:58.5]} 5...
Bf8 {[%clk 0:03:03.3]} 6. Be3 {[%clk 0:02:51.7]} 6... Bg7 {[%clk 0:03:02.7]} 7.
Qd2 {[%clk 0:02:51.4]} 7... f6 {[%clk 0:03:03.4]} 8. f4 {[%clk 0:02:47.9]} 8...
Nh6 {[%clk 0:03:03.3]} 9. h3 {[%clk 0:02:45.6]} 9... O-O {[%clk 0:03:02.5]} 10.
O-O-O {[%clk 0:02:45]} 10... Nf5 {[%clk 0:03:02.2]} 11. Bf2 {[%clk 0:02:45.1]}
11... fxe5 {[%clk 0:03:02.5]} 12. fxe5 {[%clk 0:02:41.2]} 12... Bh6 {[%clk
0:03:02.2]} 13. Nf3 {[%clk 0:02:19.6]} 13... e6 {[%clk 0:02:50.8]} 14. Kb1
{[%clk 0:02:13.8]} 14... Bxd2 {[%clk 0:02:50.4]} 15. Rxd2 {[%clk 0:02:14.7]}
15... c5 {[%clk 0:02:51.2]} 16. dxc5 {[%clk 0:02:07.7]} 16... Nc6 {[%clk
0:02:51.4]} 17. Bb5 {[%clk 0:02:05.6]} 17... Bd7 {[%clk 0:02:50]} 18. g4 {[%clk
0:02:01.8]} 18... Nfe7 {[%clk 0:02:47.6]} 19. Ng5 {[%clk 0:02:00.8]} 19... Nxe5
{[%clk 0:02:44.4]} 20. Bg3 {[%clk 0:01:58.8]} 20... Nf3 {[%clk 0:02:40.2]} 21.
Nxf3 {[%clk 0:01:55.6]} 21... Rxf3 {[%clk 0:02:41.1]} 22. Be5 {[%clk 0:01:56]}
22... Bxb5 {[%clk 0:02:37.4]} 23. Nxb5 {[%clk 0:01:56.9]} 23... Nc6 {[%clk
0:02:37.7]} 24. Bd6 {[%clk 0:01:55.6]} 24... Qf6 {[%clk 0:02:36.2]} 25. a3
{[%clk 0:01:55.1]} 25... Rf1+ {[%clk 0:02:27.2]} 26. Rd1 {[%clk 0:01:55.5]}
26... Rxh1 {[%clk 0:02:26.5]} 27. Rxh1 {[%clk 0:01:56.4]} 27... Qf3 {[%clk
0:02:25.1]} 28. Re1 {[%clk 0:01:56]} 28... e5 {[%clk 0:02:22.8]} 29. Nc7 {[%clk
0:01:54.5]} 29... Rd8 {[%clk 0:02:17.5]} 30. Rd1 {[%clk 0:01:53.8]} 30... Qxd1+
{[%clk 0:02:14.1]} 0-1

[Event "Late-Titled-Tuesday-Blitz-April-16-2024"]
[Site "Chess.com"]
[Date "2024.04.16"]
[Round "10"]
[White "GlavkonVVS"]
[Black "AlainBruxelles"]
[Result "1-0"]
[WhiteElo "2613"]
[BlackElo "2388"]
[TimeControl "180+1"]
[EndTime "15:50:45 PDT"]
[Termination "GlavkonVVS won by resignation"]

1. c4 {[%clk 0:03:00.9]} 1... c5 {[%clk 0:02:58.4]} 2. g3 {[%clk 0:03:00.4]}
2... Nc6 {[%clk 0:02:55.9]} 3. Bg2 {[%clk 0:03:00.9]} 3... Nf6 {[%clk
0:02:55.7]} 4. Nc3 {[%clk 0:03:01.1]} 4... e6 {[%clk 0:02:54]} 5. Nf3 {[%clk
0:02:59.4]} 5... d5 {[%clk 0:02:54.1]} 6. O-O {[%clk 0:02:57.1]} 6... d4 {[%clk
0:02:53.4]} 7. Na4 {[%clk 0:02:57.3]} 7... Be7 {[%clk 0:02:52.8]} 8. d3 {[%clk
0:02:56.7]} 8... O-O {[%clk 0:02:51.9]} 9. e3 {[%clk 0:02:57.3]} 9... Bd7 {[%clk
0:02:49.1]} 10. exd4 {[%clk 0:02:57.5]} 10... cxd4 {[%clk 0:02:47.5]} 11. Re1
{[%clk 0:02:57.5]} 11... a5 {[%clk 0:02:46.4]} 12. Qb3 {[%clk 0:02:53.8]} 12...
Nb4 {[%clk 0:02:36.4]} 13. Ne5 {[%clk 0:02:52]} 13... Rb8 {[%clk 0:02:25.1]} 14.
a3 {[%clk 0:02:50.3]} 14... Na6 {[%clk 0:02:09.8]} 15. Nxd7 {[%clk 0:02:33]}
15... Qxd7 {[%clk 0:02:08.3]} 16. Bf4 {[%clk 0:02:25.8]} 16... Nc5 {[%clk
0:02:02]} 17. Nxc5 {[%clk 0:02:23.1]} 17... Bxc5 {[%clk 0:02:02.2]} 18. Bxb8
{[%clk 0:02:23.2]} 18... Rxb8 {[%clk 0:02:02.4]} 19. Qb5 {[%clk 0:01:58.1]}
19... Qc7 {[%clk 0:01:58.7]} 20. b4 {[%clk 0:01:56.6]} 20... axb4 {[%clk
0:01:52.8]} 21. axb4 {[%clk 0:01:56.8]} 21... Bf8 {[%clk 0:01:53.1]} 22. Ra7
{[%clk 0:01:55.9]} 22... h6 {[%clk 0:01:35.5]} 23. Rxb7 {[%clk 0:01:54.5]} 1-0

[Event "Late-Titled-Tuesday-Blitz-April-16-2024"]
[Site "Chess.com"]
[Date "2024.04.16"]
[Round "10"]
[White "duone"]
[Black "wild3000"]
[Result "0-1"]
[WhiteElo "2333"]
[BlackElo "2493"]
[TimeControl "180+1"]
[EndTime "15:51:24 PDT"]
[Termination "wild3000 won by resignation"]

1. Nf3 {[%clk 0:03:00.9]} 1... a5 {[%clk 0:03:00.9]} 2. e4 {[%clk 0:02:58.3]}
2... e6 {[%clk 0:03:01.8]} 3. d4 {[%clk 0:02:58.4]} 3... a4 {[%clk 0:03:01.9]}
4. a3 {[%clk 0:02:58.1]} 4... d5 {[%clk 0:03:01.8]} 5. e5 {[%clk 0:02:57.8]}
5... c5 {[%clk 0:03:01.8]} 6. Nc3 {[%clk 0:02:58.1]} 6... Nc6 {[%clk 0:03:00.5]}
7. Bb5 {[%clk 0:02:57.5]} 7... Ne7 {[%clk 0:02:58.1]} 8. Nxa4 {[%clk 0:02:56.2]}
8... cxd4 {[%clk 0:02:54.8]} 9. Nxd4 {[%clk 0:02:55.2]} 9... Bd7 {[%clk
0:02:54.9]} 10. Nc3 {[%clk 0:02:54]} 10... Nxe5 {[%clk 0:02:53.4]} 11. O-O
{[%clk 0:02:51.4]} 11... Bxb5 {[%clk 0:02:51.1]} 12. Ncxb5 {[%clk 0:02:51.8]}
12... N7c6 {[%clk 0:02:49.7]} 13. Bf4 {[%clk 0:02:51.1]} 13... Be7 {[%clk
0:02:48.6]} 14. Re1 {[%clk 0:02:51.5]} 14... Bf6 {[%clk 0:02:37.1]} 15. Nxc6
{[%clk 0:02:15.3]} 15... bxc6 {[%clk 0:02:36.3]} 16. Nd4 {[%clk 0:02:15.9]}
16... Nc4 {[%clk 0:02:26.1]} 17. Nxc6 {[%clk 0:02:13.6]} 17... Qd7 {[%clk
0:02:24.7]} 18. Ne5 {[%clk 0:02:12.4]} 18... Nxe5 {[%clk 0:02:18.7]} 19. Bxe5
{[%clk 0:02:13.3]} 19... Bxe5 {[%clk 0:02:19.3]} 20. Rxe5 {[%clk 0:02:14.2]}
20... O-O {[%clk 0:02:19.1]} 21. Qe2 {[%clk 0:02:13.1]} 21... Qc6 {[%clk
0:02:12.6]} 22. Re1 {[%clk 0:02:10.6]} 22... Rfb8 {[%clk 0:02:10]} 23. c3 {[%clk
0:02:08]} 23... g6 {[%clk 0:02:09.4]} 24. Re3 {[%clk 0:01:56]} 24... Ra4 {[%clk
0:02:07.9]} 25. Rh3 {[%clk 0:01:54.8]} 25... Re4 {[%clk 0:02:02.1]} 26. Qd2
{[%clk 0:01:48.3]} 26... Rxe1+ {[%clk 0:02:01]} 27. Qxe1 {[%clk 0:01:48.5]}
27... Rxb2 {[%clk 0:02:00.3]} 28. g3 {[%clk 0:01:43.3]} 28... Qb7 {[%clk
0:01:54.8]} 29. Qe5 {[%clk 0:01:18.2]} 29... Rb1+ {[%clk 0:01:50.5]} 30. Kg2
{[%clk 0:01:18.5]} 30... d4+ {[%clk 0:01:50.1]} 31. f3 {[%clk 0:01:17.9]} 31...
Qb2+ {[%clk 0:01:48.9]} 0-1

[Event "Late-Titled-Tuesday-Blitz-April-16-2024"]
[Site "Chess.com"]
[Date "2024.04.16"]
[Round "10"]
[White "rajesh1464"]
[Black "Lady_Nika"]
[Result "1-0"]
[WhiteElo "2407"]
[BlackElo "2468"]
[TimeControl "180+1"]
[EndTime "15:51:25 PDT"]
[Termination "rajesh1464 won by resignation"]

1. d4 {[%clk 0:02:58.7]} 1... d5 {[%clk 0:02:58.9]} 2. c4 {[%clk 0:02:57.7]}
2... e6 {[%clk 0:02:58.7]} 3. Nc3 {[%clk 0:02:56.4]} 3... f5 {[%clk 0:02:58.9]}
4. Nf3 {[%clk 0:02:53.7]} 4... Nf6 {[%clk 0:02:59]} 5. Bf4 {[%clk 0:02:53.2]}
5... c6 {[%clk 0:02:59]} 6. e3 {[%clk 0:02:52]} 6... Bd6 {[%clk 0:02:58.5]} 7.
Bxd6 {[%clk 0:02:51.1]} 7... Qxd6 {[%clk 0:02:58.4]} 8. c5 {[%clk 0:02:51.2]}
8... Qe7 {[%clk 0:02:58.3]} 9. Ne5 {[%clk 0:02:51.5]} 9... Nbd7 {[%clk
0:02:58.6]} 10. f4 {[%clk 0:02:51.6]} 10... Nxe5 {[%clk 0:02:58.9]} 11. fxe5
{[%clk 0:02:50.3]} 11... Ne4 {[%clk 0:02:59.8]} 12. Nxe4 {[%clk 0:02:48.5]}
12... fxe4 {[%clk 0:03:00.7]} 13. Qh5+ {[%clk 0:02:45.7]} 13... g6 {[%clk
0:03:00.5]} 14. Qh6 {[%clk 0:02:45.8]} 14... Bd7 {[%clk 0:03:00.4]} 15. Be2
{[%clk 0:02:43.8]} 15... Rf8 {[%clk 0:03:00.4]} 16. Kd2 {[%clk 0:02:37.4]} 16...
O-O-O {[%clk 0:02:58.4]} 17. Rhf1 {[%clk 0:02:32.5]} 17... b6 {[%clk 0:02:54]}
18. b4 {[%clk 0:02:31.8]} 18... a5 {[%clk 0:02:52]} 19. a3 {[%clk 0:02:30.8]}
19... axb4 {[%clk 0:02:49.6]} 20. axb4 {[%clk 0:02:31.7]} 20... Rxf1 {[%clk
0:02:45]} 21. Bxf1 {[%clk 0:02:24.7]} 21... Kb7 {[%clk 0:02:43.9]} 22. Ba6+
{[%clk 0:02:16.9]} 22... Kc7 {[%clk 0:02:43.2]} 23. Be2 {[%clk 0:02:15.2]} 23...
Kb7 {[%clk 0:02:41.4]} 24. h4 {[%clk 0:02:11.3]} 24... b5 {[%clk 0:02:33.4]} 25.
Qg5 {[%clk 0:02:04.8]} 25... Qe8 {[%clk 0:02:31.2]} 26. Qf6 {[%clk 0:02:02.7]}
26... Ra8 {[%clk 0:02:30.4]} 27. Rxa8 {[%clk 0:02:00.1]} 27... Qxa8 {[%clk
0:02:30]} 28. Qe7 {[%clk 0:02:01]} 28... Qa2+ {[%clk 0:02:29.6]} 29. Ke1 {[%clk
0:01:59.9]} 29... Qb1+ {[%clk 0:02:28.6]} 30. Kf2 {[%clk 0:01:59.7]} 30... Kc8
{[%clk 0:02:28]} 31. Qf8+ {[%clk 0:01:55.8]} 31... Kb7 {[%clk 0:02:27.2]} 32.
Qd8 {[%clk 0:01:55.9]} 32... Bc8 {[%clk 0:02:14.4]} 33. Qb6+ {[%clk 0:01:55.3]}
33... Ka8 {[%clk 0:02:14.5]} 34. Qxc6+ {[%clk 0:01:52.3]} 34... Kb8 {[%clk
0:02:14.6]} 35. Qb6+ {[%clk 0:01:50.4]} 35... Ka8 {[%clk 0:02:14.7]} 36. Bxb5
{[%clk 0:01:47.4]} 36... Qb2+ {[%clk 0:02:06.8]} 37. Kg3 {[%clk 0:01:44.9]}
37... Bb7 {[%clk 0:02:02.9]} 38. c6 {[%clk 0:01:42]} 38... Bc8 {[%clk
0:02:02.6]} 39. c7 {[%clk 0:01:42]} 39... Bb7 {[%clk 0:02:01.2]} 40. Bc6 {[%clk
0:01:41.9]} 1-0

[Event "Late-Titled-Tuesday-Blitz-April-16-2024"]
[Site "Chess.com"]
[Date "2024.04.16"]
[Round "10"]
[White "shirovin"]
[Black "maurovargas01"]
[Result "1-0"]
[WhiteElo "2039"]
[BlackElo "1887"]
[TimeControl "180+1"]
[EndTime "15:51:48 PDT"]
[Termination "shirovin won by checkmate"]

1. b3 {[%clk 0:03:00.9]} 1... e5 {[%clk 0:02:57]} 2. Bb2 {[%clk 0:02:59.4]} 2...
Nc6 {[%clk 0:02:56.5]} 3. e3 {[%clk 0:02:59.8]} 3... d6 {[%clk 0:02:55]} 4. Bb5
{[%clk 0:03:00.3]} 4... Bd7 {[%clk 0:02:53.3]} 5. Nf3 {[%clk 0:02:58.9]} 5... f5
{[%clk 0:02:47.3]} 6. d3 {[%clk 0:02:49.7]} 6... Nf6 {[%clk 0:02:47]} 7. Nbd2
{[%clk 0:02:47.3]} 7... g6 {[%clk 0:02:47]} 8. O-O {[%clk 0:02:45.2]} 8... Bg7
{[%clk 0:02:47.1]} 9. d4 {[%clk 0:02:41.3]} 9... e4 {[%clk 0:02:46.6]} 10. Ng5
{[%clk 0:02:40.8]} 10... h6 {[%clk 0:02:44.7]} 11. Nh3 {[%clk 0:02:40.5]} 11...
g5 {[%clk 0:02:30]} 12. d5 {[%clk 0:02:39.7]} 12... Ne5 {[%clk 0:02:24.8]} 13.
Bxd7+ {[%clk 0:02:35.3]} 13... Nexd7 {[%clk 0:02:24.4]} 14. f3 {[%clk
0:02:29.3]} 14... exf3 {[%clk 0:02:16.7]} 15. Qxf3 {[%clk 0:02:28.1]} 15... g4
{[%clk 0:02:03.1]} 16. Qxf5 {[%clk 0:02:26.9]} 16... gxh3 {[%clk 0:02:01.2]} 17.
Qg6+ {[%clk 0:02:26.3]} 17... Kf8 {[%clk 0:01:55.6]} 18. Ne4 {[%clk 0:02:20.5]}
18... Ne5 {[%clk 0:01:31.7]} 19. Bxe5 {[%clk 0:02:05.3]} 19... dxe5 {[%clk
0:01:29.7]} 20. Nxf6 {[%clk 0:02:03.3]} 20... Rg8 {[%clk 0:01:06.8]} 21. Nh5+
{[%clk 0:01:42.5]} 21... Ke7 {[%clk 0:01:03.9]} 22. Rf7+ {[%clk 0:01:41.3]}
22... Ke8 {[%clk 0:00:58.5]} 23. Rxg7+ {[%clk 0:01:39.8]} 23... Kf8 {[%clk
0:00:51.5]} 24. Qf7# {[%clk 0:01:38.8]} 1-0